{"text_format":"3","workbook":"xlsx","n_sheets":3,"sheets":["Trainerabrechnung","Druckvorlage","Reisekosten DIN 5 (1)"],"not_rendered":{"images":1,"defined_names":7},"read":"whole","date_system":"1900"}

{"sheet":"Trainerabrechnung","index":0,"n_rows":33,"n_cols":13,"rows_kept":33,"merged":[[0,0,0,5],[1,0,1,10],[4,0,4,2],[4,3,4,4],[4,6,5,10],[5,0,5,2],[5,3,5,4],[6,0,6,2],[6,3,6,4],[6,6,6,10],[7,0,7,2],[7,6,7,10],[8,6,8,10],[9,0,9,3],[22,0,22,3],[24,0,24,3],[24,4,24,9],[25,4,25,9],[27,0,27,5],[27,9,27,11],[28,0,28,5],[28,9,28,11],[31,0,31,3],[31,4,31,7],[32,0,32,3]]}
[]
["Abrechnung Trainertätigkeit"]
[]
[]
["Vor-/Nachname, Funktion",{"$nulls":5},"Zahlungsart: Überweisung auf die beim \nHVSH hinterlegte Bankverbindung."]
["Straße"]
["PLZ Ort",{"$nulls":5},"Achtung: Neue Bankverbindung, gültig ab sofort:"]
["Kfz-Kennzeichen",{"$nulls":3},"(bei km-Geld-Abrechnungen)","IBAN"]
[{"$nulls":6},"Nur bei Änderungen ausfüllen!"]
["Trainerstunden und km-Geld"]
[]
[null,"Datum\n(am/von)","Datum\n(ggf. bis)","Maßnahme","Ort\nbeim km-Geld auch: PLZ, Straße, Hausnummer","m/w","Jahrgang","Honorar","km mit \nprivatem PKW","Fahrkosten\nkm x 0,30 €","Summe EUR"]
[{"$nulls":9},{"$f":"(I13*0.3)","v":0},{"$f":"(H13+J13)","v":{"v":0,"d":"0.00 €"}}]
[{"$nulls":9},0,{"$f":"(H14+J14)","v":{"v":0,"d":"0.00 €"}}]
[{"$nulls":9},0,{"v":0,"d":"0.00 €"}]
[{"$nulls":9},0,{"v":0,"d":"0.00 €"}]
[{"$nulls":9},0,{"v":0,"d":"0.00 €"}]
[{"$nulls":9},0,{"v":0,"d":"0.00 €"}]
[{"$nulls":9},0,{"v":0,"d":"0.00 €"}]
[{"$nulls":9},0,{"v":0,"d":"0.00 €"}]
[{"$nulls":9},0,{"v":0,"d":"0.00 €"},null,{"$f":"SUM(K13:K21)","v":{"v":0,"d":"0.00 €"}}]
[]
["Reinigungskosten Trikotsätze",{"$nulls":6},"Anzahl:",null," x 15,00 €",null,null,{"$f":"I23*15","v":{"v":0,"d":"0.00 €"}}]
[]
["Andere Kosten lt. Beleg \n(ggf. lt. beigefügter Aufstellung)"]
[{"$nulls":12},{"$f":"SUM(K25:K26)","v":0}]
[]
["Ich versichere, dass die vorgenannten Angaben richtig sind. Die Belege sind als Originale beigefügt.",{"$nulls":8},"Gesamt:",null,null,{"$f":"SUM(M20:M25)","v":{"v":0,"d":"0.00 €"}}]
["Die Versteuerung des Honorars liegt in der Verantwortung des Honorar-Empfängers."]
[]
[]
[]
["Ort, Datum",{"$nulls":3},"Eigenhändige Unterschrift"]

{"sheet":"Druckvorlage","index":1,"n_rows":33,"n_cols":14,"rows_kept":33,"merged":[[0,0,0,5],[1,0,1,10],[4,0,4,2],[4,3,4,4],[4,6,5,10],[5,0,5,2],[5,3,5,4],[6,0,6,2],[6,3,6,4],[6,6,6,10],[7,0,7,2],[7,6,7,10],[8,6,8,10],[9,0,9,3],[22,0,22,3],[24,0,24,3],[24,4,24,9],[25,4,25,9],[27,0,27,5],[27,9,27,11],[28,0,28,5],[28,9,28,11],[31,0,31,3],[31,4,31,7],[32,0,32,3]]}
[]
["Abrechnung Trainertätigkeit"]
[]
[]
["Vor-/Nachname, Funktion",{"$nulls":5},"Zahlungsart: Überweisung auf die beim \nHVSH hinterlegte Bankverbindung."]
["Straße"]
["PLZ Ort",{"$nulls":5},"Achtung: Neue Bankverbindung, gültig ab sofort:"]
["Kfz-Kennzeichen",{"$nulls":3},"(bei km-Geld-Abrechnungen)","IBAN"]
[{"$nulls":6},"Nur bei Änderungen ausfüllen!"]
["Trainerstunden und km-Geld"]
[]
[null,"Datum\n(am/von)","Datum\n(ggf. bis)","Maßnahme","Ort\nbeim km-Geld auch: PLZ, Straße, Hausnummer","m/w","Jahrgang","Honorar","km mit \nprivatem PKW","Fahrkosten\nkm x 0,30 €","Summe EUR"]
{"$rows_empty":8}
[{"$nulls":13},"€"]
[]
["Reinigungskosten Trikotsätze",{"$nulls":6},"Anzahl:",null," x 15,00 €",{"$nulls":3},"€"]
[]
["Andere Kosten lt. Beleg \n(ggf. lt. beigefügter Aufstellung)"]
[{"$nulls":13},"€"]
[]
["Ich versichere, dass die vorgenannten Angaben richtig sind. Die Belege sind als Originale beigefügt.",{"$nulls":8},"Gesamt:",{"$nulls":3},"€"]
["Die Versteuerung des Honorars liegt in der Verantwortung des Honorar-Empfängers."]
[]
[]
[]
["Ort, Datum",{"$nulls":3},"Eigenhändige Unterschrift"]

{"sheet":"Reisekosten DIN 5 (1)","index":2,"n_rows":30,"n_cols":12,"rows_kept":30,"hidden":true,"merged":[[2,2,2,4],[2,9,2,11],[12,0,12,2],[12,7,12,9],[13,0,13,3],[13,7,13,10],[18,0,18,2],[18,7,18,9],[22,0,22,2],[22,7,22,9],[28,0,28,4],[28,7,28,11]]}
["Reisekostenabrechnung ",{"$nulls":3},"gültig ab Januar 2014",null,null,"Reisekostenabrechnung ",{"$nulls":3},"gültig ab Januar 2014"]
[]
["Firma",null,"(Stempel)",{"$nulls":4},"Firma",null,"(Stempel)"]
["Name des Reisenden",{"$nulls":6},"Name des Reisenden"]
["Ziel der Reise",{"$nulls":6},"Ziel der Reise"]
["Anlass der Reise",{"$nulls":6},"Anlass der Reise"]
[]
["Reisedauer ","von:",null,null,"Uhr",null,null,"Reisedauer ","von:",null,null,"Uhr"]
[null,null,"Datum",null,"Uhrzeit",{"$nulls":4},"Datum",null,"Uhrzeit"]
[null,"bis:",null,null,"Uhr",{"$nulls":3},"bis:",null,null,"Uhr"]
[null,null,"Datum",null,"Uhrzeit",{"$nulls":4},"Datum",null,"Uhrzeit"]
[]
["Übernachtung inkl. Frühstück\n(Buchung durch den Arbeitgeber)",{"$nulls":3},"EUR",null,null,"Übernachtung inkl. Frühstück\n(Buchung durch den Arbeitgeber)",{"$nulls":3},"EUR"]
["steuerfreier Verpflegungsmehraufwand",{"$nulls":6},"steuerfreier Verpflegungsmehraufwand"]
["mehr als 8 bis\nunter 24 Stunden",null," x  12,00 €",null,"EUR",null,null,"mehr als 8 bis\nunter 24 Stunden",null," x  12,00 €",null,"EUR"]
["An-/Abreisetag bei \nmehrtägiger Reise",null," x  12,00 €",null,"EUR",null,null,"An-/Abreisetag bei \nmehrtägiger Reise",null," x  12,00 €",null,"EUR"]
["24 Stunden bei\nmehrtägiger Reise",null," x  24,00 €",null,"EUR",null,null,"24 Stunden bei\nmehrtägiger Reise",null," x  24,00 €",null,"EUR"]
[]
["abzüglich Kürzung Verpflegunspauschale",{"$nulls":6},"abzüglich Kürzung Verpflegunspauschale"]
["Anzahl Frühstück(e):",null," x 4,80 €","-","EUR",null,null,"Anzahl Frühstück(e):",null," x 4,80 €","-","EUR"]
["Anzahl \nMittag/Abendessen:",null," x 9,60 €","-","EUR",null,null,"Anzahl \nMittag/Abendessen:",null," x 9,60 €","-","EUR"]
[]
["Fahrkosten mit eigenem PKW und Auslagen",{"$nulls":3},"EUR",null,null,"Fahrkosten mit eigenem PKW und Auslagen",{"$nulls":3},"EUR"]
[null,null,"Summe:",null,"EUR",{"$nulls":4},"Summe:",null,"EUR"]
[]
["Ort, Datum",{"$nulls":6},"Ort, Datum"]
[]
["Unterschrift Reisender",{"$nulls":6},"Unterschrift Reisender"]
["Für Sie erstellt: Steuerbüro Birte Ponczyk -  Neumünster",{"$nulls":6},"Für Sie erstellt: Steuerbüro Birte Ponczyk - Neumünster"]
["Reisekosten DIN 5 (1)",{"$nulls":6},"Reisekosten DIN 5 (1)"]